fUST/lending_fUST_20240503
["ID","MTS","AMOUNT","RATE_DAILY","PERIOD"]
[325323544,1714723841272,-252.49519,0.00020891,2]
[325323546,1714723841281,-252.49519,0.00020891,2]
[325323548,1714723841290,-186.4747152,0.00020899,2]
[325323550,1714723841299,-155.43238847,0.000209,2]
[325323552,1714723841308,-6851.84017315,0.000209,2]
[325323554,1714723841317,-151.0,0.000209,2]
[325323556,1714723841327,-275.702936,0.000209,2]
[325323558,1714723841336,-275.702936,0.000209,2]
[325323560,1714723841344,-224.376817,0.000209,2]
[325323562,1714723841353,-151.0,0.000209,2]
[325323564,1714723841363,-154.80698629,0.00020903,2]
[325323566,1714723841372,-247.84482276,0.00020906,2]
[325323568,1714723841382,-720.12147295,0.00020908,2]
[325323570,1714723841392,-5481.99047917,0.00020908,2]
[325323572,1714723841401,-284.147561,0.00020908,2]
[325323574,1714723841410,-151.0,0.00020908,2]
[325323576,1714723841419,-284.147561,0.00020908,2]
[325323578,1714723841429,-155.09191994,0.00020911,2]
[325323580,1714723841438,-719.07241073,0.00020912,2]
[325323582,1714723841447,-363.8,0.00021847,3]
[325323584,1714723841456,-1273.32,0.00021847,3]
[325323586,1714723841465,-636.66,0.00021847,3]
[325323588,1714723841474,-318.32,0.00021847,3]
[325323590,1714723841484,-166.666666,0.00021918,2]
[325323592,1714723841493,-193.288638,0.00021918,2]
[325323594,1714723841502,-598.282573,0.00021918,2]
[325323596,1714723841512,-598.282573,0.00021918,2]
[325323598,1714723841521,-151.0,0.00021918,2]
[325323600,1714723841531,-151.0,0.00021918,2]
[325323602,1714723841540,-252.49519,0.00021918,2]
[325323604,1714723841551,-252.49519,0.00021918,2]
[325323606,1714723841560,-159.311331,0.00022,2]
[325323608,1714723841570,-2182.82,0.00022192,3]
[325323610,1714723841580,-275.702936,0.00022192,2]
[325323612,1714723841589,-275.702936,0.00022192,2]
[325323614,1714723841598,-624.69962159,0.00022238,2]
[325323616,1714723841608,-214.06815165,0.000223,2]
[325323618,1714723841618,-166.666666,0.00022431,2]
[325323620,1714723841631,-151.94811846,0.00022725,2]
[325323622,1714723841642,-166.666666,0.00022944,2]
[325323624,1714723841651,-714.56650019,0.00023,2]
[325323626,1714723841661,-620.23498108,0.00023349,2]
[325323628,1714723841671,-166.666666,0.00023456,2]
[325323630,1714723841680,-166.666666,0.00023969,2]
[325323632,1714723841689,-693.8834952,0.00024,2]
[325323634,1714723841701,-166.666666,0.00024482,2]
[325323636,1714723841711,-620.01174905,0.00024517,2]
[325323638,1714723841720,-151.0,0.00024517,2]
[325323640,1714723841729,-151.0,0.00024517,2]
[325323642,1714723841738,-151.0,0.00024517,2]
[325323645,1714723841747,-284.147561,0.00024517,2]
[325323647,1714723841756,-151.0,0.00024517,2]
[325323649,1714723841765,-284.147561,0.00024517,2]
[325323651,1714723841775,-404.77582734,0.00024658,2]
[325323652,1714723841784,-151.94811846,0.00024957,2]
[325323655,1714723841794,-620.00058745,0.00025743,2]
[325323656,1714723841804,-151.0,0.00026557,2]
[325323658,1714723841813,-151.0,0.00026558,2]
[325323661,1714723841823,-1762.65025465,0.00026566,2]
[325323663,1714723841832,-151.0,0.00026587,2]
[325323665,1714723841841,-151.0,0.00026587,2]
[325323667,1714723841850,-151.0,0.00026587,2]
[325323669,1714723841859,-154.831604,0.00026597,2]
[325323670,1714723841868,-1684.93587128,0.00026597,2]
[325323673,1714723841878,-757.41261472,0.000266,2]
[325323674,1714723841886,-154.7215013,0.000266,2]
[325323676,1714723841896,-155.751486,0.000266,2]
[325323678,1714723841905,-158.390335,0.000266,2]
[325323680,1714723841915,-151.0,0.000266,2]
[325323683,1714723841924,-560.022438,0.000266,2]
[325323685,1714723841933,-560.022438,0.000266,2]
[325323687,1714723841943,-151.0,0.000266,2]
[325323689,1714723841952,-151.0,0.000269,2]
[325323691,1714723841960,-598.282573,0.000269,2]
[325323693,1714723841970,-598.282573,0.000269,2]
[325323695,1714723841979,-151.0,0.000269,2]
[325323697,1714723841988,-151.73534,0.000269,2]
[325323699,1714723841998,-275.702936,0.000269,2]
[325323701,1714723842007,-275.702936,0.000269,2]
[325323703,1714723842015,-252.49519,0.000269,2]
[325323705,1714723842024,-252.49519,0.000269,2]
[325323707,1714723842034,-166.666666,0.00026986,2]
[325323709,1714723842043,-5000.0,0.00027,2]
[325323710,1714723842052,-8534.85091698,0.00027,2]
[325323712,1714723842061,-9381.55295255,0.00027,2]
[325323714,1714723842070,-17989.98208638,0.00027,15]
[325323716,1714723842079,-151.0,0.00027,2]
[325323718,1714723842089,-151.0,0.00027,2]
[325323720,1714723842098,-151.0,0.00027,2]
[325323722,1714723842107,-151.0,0.00027,2]
[325323724,1714723842116,-210.519815,0.00027,2]
[325323726,1714723842125,-560.022438,0.00027,2]
[325323728,1714723842134,-560.022438,0.00027,2]
[325323731,1714723842145,-560.022438,0.00027,2]
[325323732,1714723842154,-560.022438,0.00027,2]
[325323734,1714723842163,-151.0,0.00027,2]
[325323737,1714723842173,-151.0,0.00027,2]
[325323739,1714723842182,-153.62966,0.00027,2]
[325323740,1714723842191,-151.0,0.00027,2]
[325323742,1714723842200,-151.0,0.00027,2]
[325323744,1714723842209,-598.282573,0.00027,2]
[325323746,1714723842218,-598.282573,0.00027,2]
[325323748,1714723842227,-598.282573,0.00027,2]
[325323750,1714723842236,-598.282573,0.00027,2]
[325323752,1714723842246,-277.355761,0.00027,2]
[325323754,1714723842255,-275.702936,0.00027,2]
[325323756,1714723842264,-275.702936,0.00027,2]
[325323758,1714723842273,-275.702936,0.00027,2]
[325323760,1714723842282,-275.702936,0.00027,2]
[325323762,1714723842291,-252.49519,0.00027,2]
[325323764,1714723842300,-252.49519,0.00027,2]
[325323766,1714723842310,-252.49519,0.00027,2]
[325323768,1714723842320,-252.49519,0.00027,2]
[325323782,1714723842429,-284.147561,0.00027,2]
[325323784,1714723842438,-153.981484,0.00027,2]
[325323786,1714723842447,-284.147561,0.00027,2]
[325323788,1714723842457,-284.147561,0.00027,2]
[325323790,1714723842466,-284.147561,0.00027,2]
[325323792,1714723842475,-620.00002937,0.0002703,2]
[325323794,1714723842484,-151.94811846,0.0002719,2]
[325323796,1714723842493,-1103.70060819,0.00027287,2]
[325323797,1714723842502,-186.75667289,0.00027287,2]
[325323799,1714723842511,-258.051194,0.0002729,2]
[325323802,1714723842521,-151.0,0.0002729,2]
[325323804,1714723842530,-560.022438,0.0002729,2]
[325323806,1714723842540,-560.022438,0.0002729,2]
[325323808,1714723842551,-151.0,0.0002729,2]
[325323810,1714723842561,-598.282573,0.0002729,2]
[325323812,1714723842570,-598.282573,0.0002729,2]
[325323814,1714723842579,-275.702936,0.0002729,2]
[325323816,1714723842588,-275.702936,0.0002729,2]
[325323818,1714723842597,-275.702936,0.0002729,2]
[325323820,1714723842607,-275.702936,0.0002729,2]
[325323822,1714723842622,-252.49519,0.0002729,2]
[325323824,1714723842631,-252.49519,0.0002729,2]
[325323826,1714723842642,-284.147561,0.0002729,2]
[325323828,1714723842651,-284.147561,0.0002729,2]
[325323830,1714723842662,-284.147561,0.0002729,2]
[325323832,1714723842671,-284.147561,0.0002729,2]
[325323834,1714723842680,-25215.49051777,0.0002729,3]
[325323946,1714723843455,-500.0,0.00020475,2]
[325323948,1714723843466,-211.29672768,0.00020475,2]
[325323950,1714723843476,-450.0,0.00020475,2]
[325323952,1714723843486,-500.0,0.00020475,2]
[325323954,1714723843495,-500.0,0.00020475,2]
[325323956,1714723843505,-500.0,0.00020475,2]
[325323958,1714723843515,-500.0,0.00020475,2]
[325323960,1714723843525,-4968.45294101,0.0002729,3]
[325323962,1714723843537,-25371.05654122,0.0002729,3]
[325323964,1714723843546,-3000.0,0.00027296,2]
[325323966,1714723843555,-3000.0,0.00027296,2]
[325323968,1714723843565,-3000.0,0.00027296,2]
[325323970,1714723843575,-3000.0,0.00027296,2]
[325323972,1714723843586,-3000.0,0.00027296,2]
[325323974,1714723843596,-61708.84028518,0.0002739,2]
[325324000,1714723843852,-1772.1,0.0002739,2]
[325324247,1714723846391,-1395.86161104,0.00020912,2]
[325324249,1714723846401,-815.6627569,0.00020913,2]
[325324251,1714723846411,-1173.29972285,0.00020913,2]
[325324253,1714723846420,-476.17156926,0.00020913,2]
[325324254,1714723846429,-1616.24571312,0.00020913,2]
[325324258,1714723846455,-523.23014117,0.00020912,2]
[325324261,1714723846464,-579.10409755,0.00020913,2]
[325324264,1714723846474,-255.70386075,0.00020913,2]
[325324267,1714723846483,-154.82968734,0.00020913,2]
[325324270,1714723846492,-2634.24540333,0.00020913,2]
[325324272,1714723846502,-5701.64717668,0.00021918,2]
[325324435,1714723898519,525.36877253,0.0002,4]
[325324436,1714723954162,250.0,0.0001991,2]
[325324437,1714723979271,4275.0,0.0001991,2]
[325324440,1714724033585,690.2805996,0.00020069,2]
[325324441,1714724073238,301.25519196,0.00019178,2]
[325324442,1714724199481,1473.786645,0.00019748,2]
[325324450,1714724473096,453.7,0.00025192,60]
[325324451,1714724490806,400.1,0.00025192,60]
[325324455,1714724692009,736.893322,0.00019632,2]
[325324456,1714724725378,161.643618,0.00019339,2]
[325324457,1714724872152,521.36939513,9.999e-05,2]
[325324508,1714725031693,-488.51147253,0.00020394,2]
[325324510,1714725031704,-200.18144808,0.00020395,2]
[325324511,1714725031713,-473.19998042,0.00020395,2]
[325324513,1714725031723,-291.84066382,0.00020395,2]
[325324514,1714725031732,-775.30651495,0.00020396,2]
[325324516,1714725031742,-154.82968734,0.00020396,2]
[325324518,1714725031751,-208.20456321,0.00020397,2]
[325324520,1714725031760,-5360.21990665,0.00020397,2]
[325324522,1714725031771,-2517.24135438,0.00020397,2]
[325324523,1714725031780,-409.45081971,0.00020397,2]
[325324526,1714725031790,-1395.86161104,0.00020398,2]
[325324527,1714725031799,-330.96044123,0.00020398,2]
[325324529,1714725031815,-369.93413258,0.00020398,2]
[325324531,1714725031824,-13.86569662,0.00020399,2]
[325324533,1714725031835,-328.22357448,0.00020399,2]
[325324746,1714725037914,-104.72466739,0.00020399,2]
[325324747,1714725037924,-1402.84309666,0.00020478,2]
[325324748,1714725037935,-2809.52827267,0.00020478,2]
[325324755,1714725039939,-932.98981961,0.00020478,2]
[325324756,1714725039949,-569.83196401,0.00020812,2]
[325324757,1714725039959,-158.3931116,0.00020907,2]
[325324758,1714725039970,-528.24063683,0.00020912,2]
[325324759,1714725039983,-5829.89826615,0.00020912,2]
[325324760,1714725039992,-2107.15661941,0.00020912,2]
[325324761,1714725040002,-1879.56599703,0.00020913,2]
[325324762,1714725040012,-166.666666,0.00021918,2]
[325324763,1714725040023,-9464.357141,0.00021918,2]
[325324764,1714725040032,-159.311331,0.00022,2]
[325324765,1714725040041,-166.666666,0.00022431,2]
[325324766,1714725040052,-569.83196401,0.00022599,2]
[325324767,1714725040061,-166.666666,0.00022944,2]
[325324768,1714725040070,-714.56650019,0.00023455,2]
[325324769,1714725040080,-166.666666,0.00023456,2]
[325324771,1714725040089,-620.00000001,0.00023701,2]
[325324773,1714725040098,-166.666666,0.00023969,2]
[325324775,1714725040108,-693.8834952,0.00024382,2]
[325324776,1714725040117,-569.83196401,0.00024387,2]
[325324777,1714725040127,-166.666666,0.00024482,2]
[325324778,1714725040137,-51.78794533,0.00024886,2]
[325324779,1714725040151,-568.21205467,0.00024886,2]
[325324780,1714725040161,-757.41261472,0.00025192,2]
[325324781,1714725040171,-154.82968734,0.00025192,2]
[325324782,1714725040181,-620.0,0.0002613,2]
[325324783,1714725040190,-569.83196401,0.00026174,2]
[325324784,1714725040199,-152.0,0.000265,10]
[325324785,1714725040208,-1000.0,0.00026758,2]
[325324786,1714725040219,-1000.0,0.00026763,2]
[325324787,1714725040228,-179.75694964,0.00026783,2]
[325324788,1714725040242,-820.24305036,0.00026783,2]
[325324789,1714725040251,-1000.0,0.00026788,2]
[325324790,1714725040260,-1000.0,0.00026802,2]
[325324791,1714725040270,-1000.0,0.00026811,2]
[325324792,1714725040279,-3199.38283902,0.00026848,2]
[325324820,1714725042929,-4275.0,0.00026848,2]
[325324824,1714725045819,-592.78,0.00026848,2]
[325324834,1714725207452,250.0,0.00020184,2]
[325324835,1714725213504,1328.9969481,0.00020184,2]
[325324836,1714725222454,1622.54742962,9.999e-05,2]
[325324838,1714725262401,198.253114,0.00020117,2]
[325324839,1714725425691,683.61842486,9.999e-05,2]
[325324840,1714725473569,465.55319451,9.999e-05,2]
[325324842,1714725734970,368.446661,0.00019539,2]
[325324846,1714726230971,184.22333,0.0001944,2]
[325324889,1714726232080,-409.45081971,0.00020206,2]
[325324890,1714726232089,-700.89457381,0.00020207,2]
[325324891,1714726232098,-775.30651495,0.00020207,2]
[325324893,1714726232108,-200.18144808,0.00020208,2]
[325324895,1714726232117,-1622.54742962,0.00020208,2]
[325324897,1714726232127,-1395.86161104,0.00020209,2]
[325324898,1714726232137,-2591.7129178,0.0002021,2]
[325324900,1714726232147,-166.48960869,0.00020258,2]
[325324901,1714726232156,-161.032701,0.00020367,2]
[325324902,1714726232167,-1154.2281383,0.00020913,2]
[325324904,1714726232178,-6736.57204385,0.00020913,2]
[325324969,1714726238073,-446.81393849,0.00020205,2]
[325324971,1714726238083,-6712.27956908,0.00020913,2]
[325324973,1714726238100,-1073.41554048,0.00020913,2]
[325324975,1714726238109,-284.91598204,0.00021818,2]
[325324977,1714726238118,-166.666666,0.00021918,2]
[325324979,1714726238128,-229.00816687,0.00022,2]
[325324981,1714726238137,-166.666666,0.00022431,2]
[325324983,1714726238146,-166.666666,0.00022944,2]
[325324986,1714726238156,-767.66031261,0.00023,2]
[325324988,1714726238171,-311.92692808,0.00023,2]
[325324990,1714726238182,-3920.41275931,0.00023,2]
[325324992,1714726238191,-714.56650019,0.00023407,2]
[325324994,1714726238204,-620.00000146,0.00023408,2]
[325324996,1714726238214,-166.666666,0.00023456,2]
[325324998,1714726238223,-284.915982,0.00023462,2]
[325325000,1714726238232,-166.666666,0.00023969,2]
[325325002,1714726238242,-166.666666,0.00024482,2]
[325325004,1714726238251,-620.00000007,0.00024578,2]
[325325006,1714726238260,-284.915982,0.00025105,2]
[325325008,1714726238270,-620.0,0.00025807,2]
[325325010,1714726238279,-493.25746574,0.00026019,2]
[325325012,1714726238289,-6976.22372035,0.000266,2]
[325325138,1714726240227,-159.311331,0.00022,2]
[325325139,1714726240237,-3017.39586143,0.000266,2]
[325325287,1714726246212,-593.78,0.000266,2]
[325325290,1714726341014,291.84066382,9.999e-05,2]
[325325293,1714726612036,683.61842486,9.999e-05,2]
[325325294,1714726617801,-0.2581525,0.00028637,120]
[325325295,1714726617837,-499.7418475,0.00028637,120]
[325325296,1714726738909,184.22333,0.00019905,2]
[325325297,1714726853781,488.51147253,0.0002,2]
[325325298,1714726858782,189.49749653,0.00018,2]
[325325299,1714726916887,154.82968734,9.999e-05,2]
[325325300,1714726918818,252.77788961,9.899e-05,2]
[325325301,1714726924629,154.82968734,9.999e-05,2]
[325325306,1714727094964,1622.54742962,0.00020249,2]
[325325307,1714727095384,446.81393849,0.00020249,2]
[325325308,1714727105772,1395.86161104,0.00020249,2]
[325325316,1714727193160,215.85310535,0.0002521,14]
[325325321,1714727382160,442.6759204,0.0002439,11]
[325325349,1714727432561,-154.82968734,0.00020259,2]
[325325350,1714727432571,-1395.86161104,0.00020259,2]
[325325351,1714727432580,-1622.54742962,0.0002026,2]
[325325352,1714727432590,-446.81393849,0.0002026,2]
[325325353,1714727432600,-700.89457381,0.00020261,2]
[325325354,1714727432610,-200.18144808,0.00020261,2]
[325325355,1714727432619,-161.643618,0.00020265,2]
[325325356,1714727432629,-166.666666,0.00021918,2]
[325325357,1714727432639,-166.666666,0.00022431,2]
[325325358,1714727432648,-1543.38056387,0.000227,2]
[325325359,1714727432657,-166.666666,0.00022944,2]
[325325360,1714727432669,-5000.0,0.00023,2]
[325325361,1714727432681,-714.56650019,0.00023455,2]
[325325362,1714727432690,-166.666666,0.00023456,2]
[325325363,1714727432700,-166.666666,0.00023969,2]
[325325364,1714727432711,-4557.3240796,0.0002439,11]
[325325365,1714727432720,-166.666666,0.00024482,2]
[325325366,1714727432729,-757.41261472,0.0002521,2]
[325325367,1714727432738,-154.76784723,0.00026,2]
[325325368,1714727432749,-622.04392152,0.00026018,2]
[325325369,1714727432758,-169.46849591,0.00026019,2]
[325325370,1714727432767,-5037.09353488,0.000266,2]
[325325371,1714727432776,-3524.5551199,0.00026848,2]
[325325372,1714727432786,-1103.38948247,0.00026848,2]
[325325373,1714727432795,-365.63420233,0.00026848,2]
[325325374,1714727432804,-166.666666,0.00026986,2]
[325325375,1714727432814,-8534.85091698,0.00027,2]
[325325376,1714727432824,-9381.55295255,0.00027,2]
[325325377,1714727432833,-620.0,0.00027098,2]
[325325378,1714727432843,-2002.0,0.000271,3]
[325325379,1714727432853,-985.01637202,0.00027159,2]
[325325380,1714727432862,-445.43948424,0.00027161,2]
[325325381,1714727432871,-174.23177363,0.0002718,2]
[325325382,1714727432881,-1000.0,0.00027185,2]
[325325383,1714727432891,-1000.0,0.00027198,2]
[325325384,1714727432901,-174.23177363,0.00027218,2]
[325325385,1714727432910,-1000.0,0.00027222,2]
[325325386,1714727432920,-1000.0,0.00027244,2]
[325325387,1714727432930,-601.27262,0.00027255,2]
[325325388,1714727432942,-174.23177363,0.00027257,2]
[325325389,1714727432952,-15795.96,0.00027265,3]
[325325390,1714727432962,-1000.0,0.0002728,2]
[325325391,1714727432972,-24662.76,0.00027285,3]
[325325392,1714727432984,-17651.47077078,0.00027285,3]
[325325437,1714727438320,-1000.0,0.00027286,2]
[325325438,1714727438329,-790.00061626,0.00027293,2]
[325325612,1714727440229,2787.33624114,0.00022,11]
[325325845,1714727443488,-171.09157419,0.00027293,2]
[325325846,1714727443497,-202.87292437,0.00027294,2]
[325325847,1714727443508,-371.54,0.00027294,2]
[325325848,1714727443519,-190.17256228,0.00027294,2]
[325325849,1714727443528,-188.76943771,0.00027295,2]
[325326084,1714727448527,273.37336231,0.00022,11]
[325326205,1714727480022,273.37336231,0.00022,11]
[325326206,1714727519418,273.37336231,0.00022,11]
[325326207,1714727527506,273.37336231,0.00022,11]
[325326208,1714727536392,273.37336231,0.00022,11]
[325326209,1714727545499,273.37336231,0.00022,11]
[325326210,1714727554263,273.37336231,0.00022,11]
[325326211,1714727562662,273.37336231,0.00022,11]
[325326212,1714727572208,273.37336231,0.00022,11]
[325326213,1714727581069,273.37336231,0.00022,11]
[325326214,1714727589931,273.37336231,0.00022,11]
[325326215,1714727597986,273.37336231,0.00022,11]
[325326216,1714727606329,273.37336231,0.00022,11]
[325326217,1714727615451,273.37336231,0.00022,11]
[325326218,1714727624626,273.37336231,0.00022,11]
[325326219,1714727632659,546.74672462,0.00022,11]
[325326220,1714727648361,273.37336231,0.00022,11]
[325326221,1714727656384,273.37336231,0.00022,11]
[325326222,1714727665426,273.37336231,0.00022,11]
[325326223,1714727674849,273.37336231,0.00022,11]
[325326224,1714727683928,273.37336231,0.00022,11]
[325326225,1714727693452,122.33066973,0.00022,11]
[325326226,1714727783573,154.82968734,9.999e-05,2]
[325326227,1714727882744,273.37336231,9.9e-05,2]
[325326228,1714727890830,273.37336231,9.9e-05,2]
[325326229,1714727900258,273.37336231,9.9e-05,2]
[325326230,1714727908317,273.37336231,9.9e-05,2]
[325326231,1714727916689,273.37336231,9.9e-05,2]
[325326232,1714727925267,273.37336231,9.9e-05,2]
[325326233,1714727933891,273.37336231,9.9e-05,2]
[325326234,1714727942542,273.37336231,9.9e-05,2]
[325326235,1714727950931,273.37336231,9.9e-05,2]
[325326236,1714727959111,273.37336231,9.9e-05,2]
[325326237,1714727968405,273.37336231,9.9e-05,2]
[325326238,1714727976457,273.37336231,9.9e-05,2]
[325326239,1714727984999,273.37336231,9.9e-05,2]
[325326240,1714727993290,273.37336231,9.9e-05,2]
[325326241,1714728001596,273.37336231,9.9e-05,2]
[325326242,1714728009787,273.37336231,9.9e-05,2]
[325326243,1714728018173,273.37336231,9.9e-05,2]
[325326244,1714728026160,273.37336231,9.9e-05,2]
[325326245,1714728035555,273.37336231,9.9e-05,2]
[325326246,1714728043583,273.37336231,9.9e-05,2]
[325326247,1714728052229,273.37336231,9.9e-05,2]
[325326248,1714728061633,273.37336231,9.9e-05,2]
[325326250,1714728070192,273.37336231,9.9e-05,2]
[325326251,1714728078732,273.37336231,9.9e-05,2]
[325326252,1714728088117,273.37336231,9.9e-05,2]
[325326253,1714728096103,273.37336231,9.9e-05,2]
[325326254,1714728104421,273.37336231,9.9e-05,2]
[325326255,1714728112604,273.37336231,9.9e-05,2]
[325326256,1714728121666,273.37336231,9.9e-05,2]
[325326257,1714728129741,273.37336231,9.9e-05,2]
[325326258,1714728138031,273.37336231,9.9e-05,2]
[325326259,1714728146735,273.37336231,9.9e-05,2]
[325326260,1714728155821,273.37336231,9.9e-05,2]
[325326261,1714728163900,273.37336231,9.9e-05,2]
[325326262,1714728172197,155.37436756,9.9e-05,2]
[325326263,1714728173327,273.37336231,9.9e-05,2]
[325326264,1714728174338,10869.71526785,9.9e-05,2]
[325326265,1714728174631,229.14248652,9.9e-05,2]
[325326266,1714728177706,364.03243899,9.9e-05,2]
[325326267,1714728177984,155.72457083,9.9e-05,2]
[325326268,1714728182364,273.37336231,9.9e-05,2]
[325326269,1714728185609,155.13008086,9.9e-05,2]
[325326270,1714728186553,280.54594675,9.9e-05,2]
[325326271,1714728190860,273.37336231,9.9e-05,2]
[325326272,1714728199428,273.37336231,9.9e-05,2]
[325326273,1714728199681,364.03243899,9.9e-05,2]
[325326274,1714728206315,14011.07913513,9.9e-05,2]
[325326275,1714728207674,273.37336231,9.9e-05,2]
[325326276,1714728215933,273.37336231,9.9e-05,2]
[325326277,1714728224880,273.37336231,9.9e-05,2]
[325326278,1714728233439,273.37336231,9.9e-05,2]
[325326279,1714728242133,273.37336231,9.9e-05,2]
[325326280,1714728250208,273.37336231,9.9e-05,2]
[325326281,1714728259232,273.37336231,9.9e-05,2]
[325326282,1714728267281,273.37336231,9.9e-05,2]
[325326283,1714728275643,273.37336231,9.9e-05,2]
[325326284,1714728283304,6115.0405117,0.00019473,2]
[325326285,1714728284178,273.37336231,9.9e-05,2]
[325326286,1714728294687,273.37336231,9.9e-05,2]
[325326287,1714728302828,273.37336231,9.9e-05,2]
[325326288,1714728311180,273.37336231,9.9e-05,2]
[325326289,1714728320288,273.37336231,9.9e-05,2]
[325326290,1714728328612,273.37336231,9.9e-05,2]
[325326291,1714728336634,273.37336231,9.9e-05,2]
[325326292,1714728345495,273.37336231,9.9e-05,2]
[325326293,1714728354029,273.37336231,9.9e-05,2]
[325326294,1714728363070,273.37336231,9.9e-05,2]
[325326295,1714728372725,273.37336231,9.9e-05,2]
[325326296,1714728381128,273.37336231,9.9e-05,2]
[325326297,1714728389386,273.37336231,9.9e-05,2]
[325326298,1714728397570,273.37336231,9.9e-05,2]
[325326299,1714728406174,273.37336231,9.9e-05,2]
[325326300,1714728414798,273.37336231,9.9e-05,2]
[325326301,1714728424294,273.37336231,9.9e-05,2]
[325326302,1714728433243,273.37336231,9.9e-05,2]
[325326303,1714728441889,273.37336231,9.9e-05,2]
[325326304,1714728450199,273.37336231,9.9e-05,2]
[325326305,1714728458327,273.37336231,9.9e-05,2]
[325326306,1714728466648,273.37336231,9.9e-05,2]
[325326307,1714728474795,273.37336231,9.9e-05,2]
[325326308,1714728483233,273.37336231,9.9e-05,2]
[325326309,1714728491611,273.37336231,9.9e-05,2]
[325326310,1714728499909,273.37336231,9.9e-05,2]
[325326311,1714728507943,273.37336231,9.9e-05,2]
[325326324,1714728516922,273.37336231,9.9e-05,2]
[325326325,1714728525422,273.37336231,9.9e-05,2]
[325326326,1714728533942,273.37336231,9.9e-05,2]
[325326327,1714728542002,273.37336231,9.9e-05,2]
[325326328,1714728550329,273.37336231,9.9e-05,2]
[325326329,1714728558437,273.37336231,9.9e-05,2]
[325326331,1714728567300,273.37336231,9.9e-05,2]
[325326332,1714728575957,273.37336231,9.9e-05,2]
[325326333,1714728584412,273.37336231,9.9e-05,2]
[325326334,1714728592496,273.37336231,9.9e-05,2]
[325326335,1714728600938,273.37336231,9.9e-05,2]
[325326336,1714728609062,273.37336231,9.9e-05,2]
[325326338,1714728618928,273.37336231,9.9e-05,2]
[325326339,1714728627312,273.37336231,9.9e-05,2]
[325326359,1714728632642,-700.89457381,0.00020266,2]
[325326360,1714728632652,-1395.86161104,0.00020266,2]
[325326361,1714728632662,-664.66845839,0.00020267,2]
[325326362,1714728632697,-1453.99588173,0.00020267,2]
[325326363,1714728632709,-473.04857768,0.00020267,2]
[325326364,1714728632720,-446.81393849,0.00020268,2]
[325326365,1714728632730,-7877.46126103,0.00020269,2]
[325326366,1714728632739,-41223.12553282,0.00020282,2]
[325326367,1714728632748,-174.23177363,0.00020632,2]
[325326368,1714728632757,-2640.3045688,0.00020732,5]
[325326369,1714728632766,-166.666666,0.00021918,2]
[325326370,1714728632777,-166.666666,0.00022431,2]
[325326371,1714728632786,-166.666666,0.00022944,2]
[325326372,1714728632796,-5000.0,0.00023,2]
[325326373,1714728632806,-714.56650019,0.00023455,2]
[325326374,1714728632815,-166.666666,0.00023456,2]
[325326375,1714728632824,-166.666666,0.00023969,2]
[325326376,1714728632834,-166.666666,0.00024482,2]
[325326377,1714728632843,-1242.9,0.00024646,5]
[325326378,1714728632852,-757.41261472,0.00025,2]
[325326379,1714728632862,-1242.9,0.00025905,7]
[325326380,1714728632871,-166.666666,0.00026986,2]
[325326381,1714728632880,-9381.55295255,0.00027,2]
[325326382,1714728632890,-620.00000001,0.0002703,2]
[325326383,1714728632900,-1242.9,0.00027165,7]
[325326384,1714728632910,-3219.82499667,0.0002723,3]
[325326385,1714728632921,-6387.47423381,0.0002723,3]
[325326386,1714728636227,273.37336231,9.9e-05,2]
[325326450,1714728638702,-154.82968734,0.00020265,2]
[325326452,1714728638712,-992.60290787,0.00020266,2]
[325326457,1714728638759,-5402.03252755,0.00020266,2]
[325326459,1714728638772,-6885.5728176,0.00020266,2]
[325326911,1714728644128,-1195.8989406,0.00020266,2]
[325326991,1714728645814,273.37336231,9.9e-05,2]
[325326998,1714728646726,-1204.3508731,0.00020266,2]